Cogmind - Beta 10 @@@ ROGUE MODE // 2020.09.16 @ 18:29:40 Player: UlyssesB Result: Destroyed by G-34 Mercenary with Small Laser Performance ------------- Evolutions (0) 0 Regions Visited (2) 400 Robots Destroyed (18) 90 Value Destroyed (445) 445 Prototype IDs (0) 0 Alien Tech Used (0) 0 Bonus (16) 16 TOTAL SCORE: 951 Bonus ------- Follower Combat Kills 85 Friendly Fire -69 Cogmind --------- Core Integrity 0/250 Matter 290/300 Energy 87/100 System Corruption 1% Temperature Cool (6) Movement Core (50) Location -10/Mines Parts ------- > --- POWER (1) -------- (None) > --- PROPULSION (2) --- Wheel > --- UTILITY (2) ------ Disposable Heat Sink > --- WEAPON (2) ------- (None) > --- INVENTORY (4) ---- Improved Ion Engine Heavy Assault Rifle Heavy Assault Rifle Peak State ------------ > --- POWER ------------ Improved Ion Engine > --- PROPULSION ------- Light Treads Light Treads > --- UTILITY ---------- Heat Sink Small Storage Unit > --- WEAPON ----------- Heavy Assault Rifle Heavy Assault Rifle > --- INVENTORY -------- Improved Ion Engine Disposable Heat Sink Heavy Assault Rifle Heavy Assault Rifle Grenade Launcher Datajack [Rating: 11] Favorites ----------- Power Improved Ion Engine Engine Improved Ion Engine Propulsion Light Treads Treads Light Treads Leg Aluminum Leg Wheel Wheel Utility Small Storage Unit Device Heat Sink Storage Small Storage Unit Protection Light Armor Plating Weapon Heavy Assault Rifle Energy Gun Small Laser Ballistic Gun Heavy Assault Rifle Launcher Grenade Launcher Special Weapon Plasma Cutter Build | -11 -10 -10 ------- Run | Scr Mat Min Slots Evolved . | . . . Power . | . . . Propulsion . | . . . Utility . | . . . Weapon . | . . . Parts Attached 29 | . 22 7 Power 1 | . 1 . Engine 1 | . 1 . Core . | . . . Reactor . | . . . Propulsion 9 | . 8 1 Treads 5 | . 5 . Leg 1 | . 1 . Wheel 3 | . 2 1 Hover . | . . . Flight . | . . . Utility 5 | . 3 2 Device 4 | . 2 2 Storage . | . . . Processor . | . . . Hackware . | . . . Protection 1 | . 1 . Artifact . | . . . Weapon 14 | . 10 4 Energy Gun 3 | . 3 . Energy Cannon . | . . . Ballistic Gun 6 | . 4 2 Ballistic Cannon . | . . . Launcher 3 | . 1 2 Special Weapon 2 | . 2 . Impact Weapon . | . . . Slashing Weapon . | . . . Piercing Weapon . | . . . Special Melee Weapon . | . . . Unidentified Prototypes . | . . . Parts Lost 14 | . 10 4 Power 1 | . 1 . Propulsion 5 | . 3 2 Utility 2 | . 1 1 Weapon 6 | . 5 1 Highest Loss Streak 10 | . 10 2 Average Slot Usage (%) 78 | . 74 82 Engine 10 | . 11 10 Treads 15 | . 7 27 Leg 5 | . 9 . Device 7 | . 3 13 Storage 12 | . 14 10 Ballistic Gun 13 | . 8 20 Special Weapon 8 | . 14 . Naked Turns . | . . . Heaviest Build 18 | 9 18 18 Greatest Support 40 | 20 40 40 Greatest Overweight (x) 4 | . 4 . Average Overweight (x) . | . . . Largest Inventory Capacity 6 | 6 6 6 Average Capacity 5 | 6 6 5 Most Carried 6 | 6 6 6 Average Carried 5 | 6 5 5 Final Capacity 6 | 6 6 4 Final Carried 6 | 6 6 3 Class Distribution -------------------- 100% | Mutant Dominant Class ---------------- Mutant | -10/Materials Mutant | -10/Mines Resources | -11 -10 -10 ----------- Run | Scr Mat Min Matter Collected 588 | 200 187 201 Remotely . | . . . Salvage Created 522 | . 407 115 Parts 36 | . 28 8 Haulers Intercepted 1 | . 1 . Recyclers Shooed 1 | . 1 . Parts Field Recycled . | . . . Retrieved Matter . | . . . Parts Self-Destructed . | . . . Prevented . | . . . Kills | -11 -10 -10 ------- Run | Scr Mat Min Combat Hostiles Destroyed 12 | . 9 3 Guns 8 | . 5 3 AOE 4 | . 4 . Classes Destroyed 7 | . 7 . Worker 2 | . 1 1 Hauler 1 | . 1 . Recycler 1 | . 1 . Operator 1 | . 1 . Watcher 1 | . 1 . Swarmer 2 | . 2 . Grunt 10 | . 7 3 Best Kill Streak 7 | . 7 2 Combat Bots Only 4 | . 4 2 Max Kills in Single Turn 2 | . 2 1 Gunslinging . | . . . Exploded 2 | . 2 . Melee . | . . . Uniques/NPCs Destroyed . | . . . Combat | -11 -10 -10 -------- Run | Scr Mat Min Damage Taken 1416 | . 905 511 Core 250 | . 146 104 Absorbed by Shields . | . . . Core Remaining (%) 100 | 100 . . Volleys Fired 52 | . 36 16 Largest 2 | . 2 2 Hottest 80 | . 80 46 Shots Fired 85 | . 56 29 Gun 68 | . 42 26 Cannon . | . . . Launcher 7 | . 4 3 Special 10 | . 10 . Kinetic 59 | . 33 26 Thermal 19 | . 19 . Explosive 7 | . 4 3 Electromagnetic . | . . . Robot Hit Streak 12 | . 12 12 Robot Miss Streak 3 | . 3 2 Penetration Max . | . . . Secondary Targets 1 | . 1 . Max Gunslinging Chain 1 | . 1 . Shots Hit Robots 58 | . 39 19 Core Hits 40 | . 29 11 Critical Hits 2 | . 2 . Critical Kills . | . . . Critical Parts Destroyed 2 | . 2 . Melee Attacks . | . . . Impact . | . . . Slashing . | . . . Piercing . | . . . Sneak Attacks . | . . . Combat Hostiles . | . . . Follow-up Attacks . | . . . Damage Inflicted 1286 | . 923 363 Guns 546 | . 298 248 Cannons . | . . . Explosions 644 | . 538 106 Melee . | . . . Ramming 29 | . 20 9 Kinetic 482 | . 234 248 Thermal 413 | . 413 . Explosive 362 | . 256 106 Electromagnetic . | . . . Impact . | . . . Slashing . | . . . Piercing . | . . . Highest Corruption 1 | . 1 1 Average Corruption 1 | . 1 1 Corruption Purged . | . . . Effects 6 | . 4 2 Message Errors 2 | . 2 . Energy Discharges 1 | . 1 . Data Loss (minor) 3 | . 1 2 Overload Shots . | . . . Overflow Damage 110 | . 110 . Projectiles . | . . . Explosions 110 | . 110 . Melee . | . . . Knockbacks . | . . . Impact . | . . . Kinetic . | . . . Secondary . | . . . Self-Inflicted Damage 109 | . 43 66 Shots 3 | . 1 2 Rammed 14 | . 9 5 Targets Rammed 15 | . 9 6 Kicked . | . . . Crushed 1 | . . 1 Highest Temperature 26 | . 26 . Average Temperature 10 | . 10 . Received Heat Transfer 402 | . 204 198 Siege Activations . | . . . Robots Corrupted . | . . . Combat Hostiles . | . . . Parts Fried . | . . . Impact Corruptions . | . . . Robots Melted . | . . . Combat Hostiles . | . . . Parts Melted . | . . . Heat Transferred 572 | . 572 . Parts Sabotaged . | . . . Parts Stolen . | . . . Parts Stripped . | . . . Power Chain Reactions . | . . . Missiles Intercepted . | . . . Alert | -11 -10 -10 ------- Run | Scr Mat Min Peak Influence 150 | . 150 110 Initial 11 | . . 11 Average 29 | . 31 27 Maximum Alert Level . | . . . Low Security (%) 100 | 100 100 100 Level 1 . | . . . Level 2 . | . . . Level 3 . | . . . Level 4 . | . . . Level 5 . | . . . High Security . | . . . Max Security . | . . . Squads Dispatched 5 | . 5 . Investigation 2 | . 2 . Extermination . | . . . Reinforcement 3 | . 3 . Assault . | . . . Garrison . | . . . Intercept . | . . . Construction Impeded . | . . . Haulers Reinforced . | . . . Stealth | -11 -10 -10 --------- Run | Scr Mat Min Distress Signals 4 | . 4 . Communications Jammed . | . . . Distress Signals . | . . . Times Spotted 49 | . 25 24 Peak Tracking Total 6 | . 6 6 Tactical Retreats 6 | . 2 4 Traps | -11 -10 -10 ------- Run | Scr Mat Min Traps Triggered 3 | . 3 . Indirectly . | . . . Trap Hack Attempts . | . . . Triggered . | . . . Disarmed . | . . . Reprogrammed . | . . . Reused . | . . . Traps Extracted . | . . . Installed . | . . . Triggered . | . . . Machines | -11 -10 -10 ---------- Run | Scr Mat Min Machines Disabled 3 | . 3 . Max in Single Turn 2 | . 2 . Machines Sabotaged . | . . . Garrisons Compromised . | . . . Overloaded Fab Kills . | . . . Fab Network Shutdowns . | . . . Hacking | -11 -10 -10 --------- Run | Scr Mat Min Machines Accessed 4 | . 4 . Terminals 4 | . 4 . Fabricators . | . . . Repair Stations . | . . . Recycling Units . | . . . Scanalyzers . | . . . Garrison Access . | . . . Total Hacks 16 | . 16 . Successful 11 | . 11 . Failed 5 | . 5 . Catastrophic 1 | . 1 . Database Lockouts . | . . . Manual 12 | . 12 . Terminals 16 | . 16 . Fabricators . | . . . Repair Stations . | . . . Recycling Units . | . . . Scanalyzers . | . . . Garrison Access . | . . . Terminal Hacks 7 | . 7 . Part Schematic 1 | . 1 . Terminal Index 1 | . 1 . Alert Level 2 | . 2 . Locate Traps 1 | . 1 . Recall Investigation 1 | . 1 . Recall Reinforcements 1 | . 1 . Fabricator Hacks . | . . . Repair Station Hacks . | . . . Recycling Unit Hacks . | . . . Scanalyzer . | . . . Garrison Access Hacks . | . . . Unauthorized Hacks 4 | . 4 . Terminals 4 | . 4 . Track 1 | . 1 . Botnet 2 | . 2 . Operators 1 | . 1 . Fabricators . | . . . Repair Stations . | . . . Recycling Units . | . . . Scanalyzers . | . . . Garrison Access . | . . . Data Cores Recovered 1 | . 1 . Used . | . . . Hacking Detections 4 | . 4 . Full Trace Events 1 | . 1 . Feedback Events . | . . . Feedback Blocked . | . . . Robot Schematics Acquired . | . . . Robots Built . | . . . Matter . | . . . Time . | . . . Total Robot Build Rating . | . . . Part Schematics Acquired 1 | . 1 . Parts Built . | . . . Matter . | . . . Time . | . . . Total Part Build Rating . | . . . Parts Repaired . | . . . Time . | . . . Parts Recycled . | . . . Recycled Matter . | . . . Retrieved Matter . | . . . Retrieved Components . | . . . Parts Scanalyzed . | . . . Part Schematics Acquired . | . . . Parts Damaged . | . . . Bothacking | -11 -10 -10 ------------ Run | Scr Mat Min Used RIF Installer . | . . . Robots Hacked . | . . . Non-combat . | . . . Combat . | . . . Robot Hacks Applied . | . . . Relay Couplers Released . | . . . Robots Rewired . | . . . Allies Hacked . | . . . Hacks Repelled . | . . . Allies | -11 -10 -10 -------- Run | Scr Mat Min Total Allies 1 | . . 1 Largest Group 1 | . . 1 Highest-Rated Group 31 | . . 31 Highest-Rated Ally 31 | . . 31 Total Orders . | . . . Ally Attacks 18 | . . 18 Total Damage 253 | . . 253 Kills 5 | . . 5 Allies Corrupted . | . . . Allies Melted . | . . . Intel | -11 -10 -10 ------- Run | Scr Mat Min Robot Analysis Total . | . . . Derelict Logs Recovered 1 | . . 1 Drone Launches . | . . . Drone Recoveries . | . . . Exploration | -11 -10 -10 ------------- Run | Scr Mat Min Turns Passed 2288 | 11 1305 972 Spaces Moved 1317 | 10 585 722 Core 416 | . 79 337 Treads 584 | . 199 385 Legs 267 | 10 257 . Wheels 50 | . 50 . Hover . | . . . Flight . | . . . Fastest Speed 50 | 120 80 50 Average Speed 124 | 120 144 108 Slowest Speed 250 | 120 250 160 Overloaded Moves . | . . . Propulsion Burnouts . | . . . Robots Hopped . | . . . Cave-ins Triggered . | . . . Exploration Rate (%) 50 | 2 66 83 Regions Visited 2 Branch Regions 1 Pre-discovered Areas . | . . . Known Exits Taken . | . . . Unknown Exits Taken 2 | 1 1 . Scrap Searched 1 | . . 1 Spaces Dug 19 | . 7 12 Terrain Destroyed 72 | . 56 16 Melee . | . . . Projectile . | . . . AOE 72 | . 56 16 Terrain Rammed . | . . . Walls Destroyed . | . . . Machines Disabled . | . . . Actions | -11 -10 -10 --------- Run | Scr Mat Min Total 1868 | 9 982 877 Wait 428 | . 311 117 Move 1315 | 9 584 722 Hop . | . . . Pick Up 16 | . 13 3 Fast Attach 10 | . 9 1 Attach 11 | . 9 2 Detach . | . . . Swap 8 | . 4 4 Drop 13 | . 7 6 Fire 52 | . 36 16 Melee . | . . . Ram 2 | . 2 . Kick 3 | . 3 . Crush 10 | . 4 6 Escape Stasis . | . . . Rewire . | . . . Trap . | . . . Miscellaneous . | . . . Route ------- -11/Scrapyard -10/Materials (discovered 2 exits: [*Mat] / [*Min]) -10/Mines History --------- Turn | Location | Event 1 | -11/Scrapyard | Discovered new exit (range 2) 12 | -11/Scrapyard | Entered Materials 204 | -10/Materials | Core integrity fell below 50% 246 | -10/Materials | Discovered new exit (range 12) 253 | -10/Materials | Lost 10 parts (1p3n1u5w) 312 | -10/Materials | Build established: Mutant 379 | -10/Materials | Discovered new exit (range 16) 1317 | -10/Materials | Entered Mines 1407 | -10/Mines | Received a Mining Laser from a helpful Derelict 1575 | -10/Mines | Excavation squad dispatched 1575 | -10/Mines | A large section of the Mines collapsed 1713 | -10/Mines | Core integrity fell below 20% 1825 | -10/Mines | Excavation squad dispatched 2060 | -10/Mines | Learned Materials emergency access door positions 2075 | -10/Mines | Excavation squad dispatched 2289 | -10/Mines | Destroyed by G-34 Mercenary with Small Laser Last Messages --------------- 02075_ ALERT: Derelict activity in mines confirmed. Dispatching additional escorted excavation squad. 02083_ K-01 Serf collects debris. 02115_ Slammed into K-01 Serf. 02208_ Slammed into T-07 Excavator. 02214_ Crushed K-01 Serf. 02214_ K-01 Serf destroyed. 02217_ Dropped Heat Sink. 02218_ Dropped Datajack. 02220_ Acquired Hvy. Assault Rifle. 02222_ Lgt. Treads destroyed. 02222_ Acquired Hvy. Assault Rifle. 02224_ Slammed into G-34 Mercenary. 02228_ Core Extractor disabled. 02233_ Sensor Array destroyed. 02258_ Acquired Wheel. 02259_ Acquired 2 matter. 02260_ Acquired 3 matter. 02267_ Slammed into U-05 Engineer. 02284_ Lgt. Treads destroyed. Map ----- +----------------------------------------------------+ | ?????????????????????????????????????????????????? | | ??????????????????????????????????????????######## | | ??????????????#####???????????????????????# | | ?????????????## ##??????????????????????# """ | | ?????????????# #??????????????????????# """ | | ?????????????# #######????????????????# """ | | ??????????????# ## ##???????????????# | | ??????????????## ##??????????????# """ | | ##?????????????## #??????????????# """ | | ##?????????????##### ##?????????????# " " | | #?????????????????## ##????????????# | | ####?????????????????## ##???????????# | | # #?????????????????## #######?????# | | #?????????????????# ##????#####%## | | ##?????????????????# #????????# #? | | ######??????????????## #????????# ## | | # ######??????????# ##????????# [ | | ## ##?????????# ########### * | | # # #?????????## ### ##### | | # #??????????# ##?## ######## #???? | | #### ##?????????# ##??## ##??????# #???# | | ???## ###???????# ##??####????#### ##### | | ????# #???????## ##?????????# | | ##### #????????## g#?????????# ######## | | =!* #####????????## #?????????# #??????? | | [ == ##???????????##@ t##????????#%#??????? | | #####! #???????????## g ##???????# #??????? | | ????## % #???????????# ###?????# ######## | | ?????## #???????????# ####??# | | ?????## ##??????????## t #### | | #???## %##?????????## t %! ### | | ###?# ##????????## #?? | | ### =%! ##???????# u t # ##?? | | ## * #???????# ## ##??? | | ### #???????# ## #### ##???? | | #?## #???????## #### ##???###????? | | #??#! #????????## ##??## ##???????????? | | #?##%* #?????????#k### ##????# #????????????? | | ##?#%=! #?????????#r#?####?????# #????????????? | | ##?## #?????????# ############ #????????????? | | ##??# %##?????????# #????????????? | | ????# #??????????# ##############????????????? | | ????## ############ #?????????????????????????? | | ?????### #?????????????????????????? | | ???????# ########### ##?????????????????????????? | | ????#### #?????????# #??????????????????????????? | | ?#### #?????????# #??????????????????????????? | | ## #?????????# #??????????????????????????? | | # """ #????###### #??????????????????????????? | | # """ #????# #??????????????????????????? | +----------------------------------------------------+ Best States ------------- Heat Dissipation 35 Energy Generation 12 Energy Capacity 265 Matter Stores 300 Matter Capacity 300 Sight Range 16 Robot Scan Range 10 Terrain Scan Density 10 Armor Coverage 150 Evasion (%) 50 Recoil Reduction 2 Item Schematics ----------------- Med. Storage Unit | -10/Materials | Hacked Robot Schematics ------------------ None Fabricated ------------ Nothing Alien Tech Used ----------------- None Achievements -------------- None Challenges ------------ None Game ------ Seed CannonArmorSuperbattery Manual? 0 Play Time 00:22:10 Cumulative 162.9 hours Start 2020.09.16 @ 15:22:38 End 2020.09.16 @ 18:29:40 Sessions 3 Manual Loads 0 Difficulty Rogue Special Mode None Game No. 105 Rogue 105 Adventurer 0 Explorer 0 Win Type - Total 6 Types 4/0/1/1/0/0/0/0/0 Lore% 70 Gallery% 64 Achievement% 51 Wizard Run 0 Options --------- ASCII 1 Keyboard 0 Movement Mouse Keybinds 0 Fullscreen 2 Font 12/Smallcaps Map View 76x56 Tactical HUD 1 Map Filters NONE Filters NONE Steam 0 RUN: 3bdf8efc-8bd1-4a3f-80af-abc736879275